bitfinex-derivatives/quotes_BNBF0:USTF0_20250302
["timestamp","ask_amount","ask_price","bid_price","bid_amount"]
[1740934236524,0.31614055,632.63,628.31,5.317]
[1740934236726,0.31614055,632.63,628.32,0.31830914]
[1740934239635,0.31614055,632.63,628.33,3.542]
[1740934242041,0.31614055,632.63,628.34,0.31829901]
[1740934243540,0.31614055,632.63,628.35,2.624]
[1740934244341,0.31614055,632.63,628.57,1.14049352]
[1740934246446,0.31614055,632.63,628.86,1.14049352]
[1740934248347,0.31614055,632.63,628.87,2.624]
[1740934249348,0.31614055,632.63,629.15,1.14049352]
[1740934250851,0.31614055,632.63,628.87,2.624]
[1740934252551,0.31614055,632.63,628.95,1.14049352]
[1740934254349,0.31614055,632.63,628.87,2.624]
[1740934258859,0.31614055,632.63,628.88,3.132]
[1740934259369,0.31614055,632.63,629.14,1.14049352]
[1740934260561,0.31614055,632.63,629.29,1.14049352]
[1740934261760,0.31614055,632.63,629.5,1.14049352]
[1740934263260,0.31614055,632.63,629.41,1.14049352]
[1740934264462,0.31614055,632.63,629.53,1.14049352]
[1740934266361,0.31614055,632.63,629.51,1.14049352]
[1740934267764,0.31614055,632.63,629.52,2.305]
[1740934270065,0.31614055,632.63,629.89,1.14049352]
[1740934272365,0.31614055,632.63,629.52,2.305]
[1740934277972,0.31614055,632.63,629.57,1.14049352]
[1740934278972,0.31614055,632.63,629.58,3.12]
[1740934281677,0.31614055,632.63,629.81,1.14049352]
[1740934283680,0.31614055,632.63,629.69,1.14049352]
[1740934284981,0.31614055,632.63,629.7,3.567]
[1740934299893,0.31614055,632.63,629.91,1.14049352]
[1740934302088,0.31614055,632.63,629.76,1.14049352]
[1740934303296,0.31614055,632.63,629.72,1.14049352]
[1740934304691,0.31614055,632.63,629.7,3.567]
[1740934304894,0.31614055,632.63,629.68,1.14049352]
[1740934305796,0.31614055,632.63,629.68,3.77349352]
[1740934306094,0.31614055,632.63,629.68,6.65949352]
[1740934306796,0.31614055,632.63,629.68,5.519]
[1740934308290,0.31614055,632.63,629.68,8.927]
[1740934324202,6.94852346,634.67,629.68,8.927]
[1740934331814,6.94852346,632.75,629.68,8.927]
[1740934337619,6.94852346,632.75,629.68,6.041]
[1740934338221,6.94852346,632.75,629.68,2.633]
[1740934340721,6.94852346,632.75,629.68,6.178]
[1740934358125,0.31615554,632.6,629.68,6.178]
[1740934362231,0.31615554,632.6,629.68,3.545]
[1740934363936,0.31615554,632.6,629.58,3.718]
[1740934365438,0.31615554,632.6,629.48,3.048]
[1740934367038,0.31615554,632.6,629.49,2.984]
[1740934368438,0.31615554,632.6,629.5,3.479]
[1740934378451,0.31615554,632.6,629.51,2.686]
[1740934386259,0.31615554,632.6,629.52,3.138]
[1740934401173,0.31615554,632.6,629.51,2.686]
[1740934401966,0.31615554,632.6,629.51,2.67922827]
[1740934408178,0.31615554,632.6,629.52,3.33]
[1740934415587,0.31615554,632.6,629.52,5.926]
[1740934434608,0.31615554,632.6,629.52,8.848]
[1740934453325,0.31615554,632.6,629.53,0.31769732]
[1740934453721,0.31615554,632.6,629.92,1.14049352]
[1740934454726,0.31615554,632.6,629.92,4.34649352]
[1740934455122,0.31615554,632.6,630.03,1.14049352]
[1740934456826,0.31615554,632.6,630.03,4.42949352]
[1740934457027,0.31615554,632.6,630.03,3.289]
[1740934463829,0.31615554,632.6,630.03,5.861]
[1740934471438,6.94852346,633.72,630.03,5.861]
[1740934474042,6.90057416,634.91,630.03,5.861]
[1740934476045,6.90057416,634.91,630.03,9.438]
[1740934483451,6.94852346,635.31,630.03,9.438]
[1740934496567,6.94852346,635.31,630.03,6.866]
[1740934496766,6.94852346,635.31,630.03,3.577]
[1740934499665,6.94852346,635.31,630.03,6.354]
[1740934499862,6.94852346,635.31,630.03,9.118]
[1740934502664,6.94852346,633.38,630.03,9.118]
[1740934509772,0.31584599,633.22,630.03,9.118]
[1740934511776,0.31584599,633.22,630.03,6.341]
[1740934518078,0.31584599,633.22,630.03,0.53865153]
[1740934518278,0.31584599,633.22,628.96,3.54]
[1740934523785,0.31584599,633.22,628.97,3.231]
[1740934539890,0.31584599,633.22,628.91,3.316]
[1740934542998,0.31584599,633.22,628.91,6.685]
[1740934545000,6.94852346,633.12,628.91,6.685]
[1740934545402,6.94852346,633.12,628.91,10.125]
[1740934547609,0.31600069,632.91,628.91,10.125]
[1740934570032,0.31600069,632.91,628.91,6.809]
[1740934571427,0.31600069,632.91,628.91,3.44]
[1740934578040,6.94852346,632.85,628.91,3.44]
[1740934580637,0.31612556,632.66,628.91,3.44]
[1740934594450,0.31612556,632.66,628.43,2.709]
[1740934595451,0.31612556,632.66,628.43,6.169]
[1740934612755,6.94852346,632.02,628.43,6.169]
[1740934612951,0.31653082,631.85,628.43,6.169]
[1740934618757,0.31653082,631.85,628.43,3.46]
[1740934624660,0.31653082,631.85,627.93,3.421]
[1740934625763,0.31653082,631.85,627.93,7.665]
[1740934643177,6.94852346,630.62,627.93,7.665]
[1740934643570,0.31721359,630.49,627.93,7.665]
[1740934645374,6.94852346,630.62,627.93,7.665]
[1740934648879,6.94852346,630.62,627.93,10.385]
[1740934649683,6.94852346,630.78,627.93,10.385]
[1740934658192,6.94852346,631.48,627.93,10.385]
[1740934665794,6.94852346,632.88,627.93,10.385]
[1740934672400,0.31613555,632.64,627.93,10.385]
[1740934672601,0.31613555,632.64,627.94,0.31850176]
[1740934674203,0.31613555,632.64,627.95,3.984]
[1740934676006,0.31613555,632.64,627.96,4.51]
[1740934677102,0.31613555,632.64,627.97,3.54]
[1740934680200,0.31613555,632.64,627.98,0.29240011]
[1740934680905,0.31613555,632.64,627.97,3.54]
[1740934681306,0.31613555,632.64,628.11,1.14049352]
[1740934683302,0.31613555,632.64,628.04,1.14049352]
[1740934685708,0.31613555,632.64,628.05,0.29233046]
[1740934685904,0.31613555,632.64,628.06,0.29233046]
[1740934686105,0.31613555,632.64,628.07,0.29233046]
[1740934686306,0.31613555,632.64,627.98,0.29233046]
[1740934686506,0.31613555,632.64,627.97,3.54]
[1740934687507,0.31613555,632.64,628.42,1.14049352]
[1740934689805,0.31613555,632.64,627.98,0.31848148]
[1740934691907,0.31613555,632.64,628.11,1.14049352]
[1740934692513,0.31613555,632.64,628.12,0.31841049]
[1740934696616,0.31613555,632.64,628.55,1.14049352]
[1740934699217,0.31613555,632.64,628.77,1.14049352]
[1740934700318,0.31613555,632.64,628.77,4.40549352]
[1740934700720,0.31613555,632.64,628.85,1.14049352]
[1740934702222,0.31613555,632.64,628.86,3.08]
[1740934715322,0.31613555,632.64,628.77,3.265]
[1740934718526,0.31613555,632.64,628.77,6.856]
[1740934726139,6.94852346,630.96,628.77,6.856]
[1740934726439,0.31702754,630.86,628.77,6.856]
[1740934734445,0.31702754,630.86,628.77,11.523]
[1740934738951,0.31702754,630.86,628.77,8.258]
[1740934747456,0.31702754,630.86,628.77,3.591]
[1740934748561,0.31702754,630.86,628.77,6.821]
[1740934755659,0.31702754,630.86,628.77,3.23]
[1740934764666,6.94852346,632.13,628.77,3.23]
[1740934782584,6.94852346,632.13,628.33,3.109]
[1740934785690,6.94852346,632.03,628.33,3.109]
[1740934790391,6.94852346,632.03,628.33,0.49186731]
[1740934792196,6.94852346,632.03,628.18,4.85]
[1740934792589,0.31653583,631.84,628.18,4.85]
[1740934807005,0.31653583,631.84,628.18,8.255]
[1740934817718,1.732,631.83,628.18,8.255]
[1740934818621,0.31663104,631.65,628.18,8.255]
[1740934819719,3.023,631.64,628.18,8.255]
[1740934820115,0.536,631.63,628.18,3.405]
[1740934821217,0.31672631,631.46,628.18,3.405]
[1740934832923,3.737,631.45,628.18,3.405]
[1740934833127,0.3168116,631.29,628.18,3.405]
[1740934836926,0.3168116,631.29,627.51,1.14049352]
[1740934837725,0.3168116,631.29,627.33,1.14049352]
[1740934837923,0.3168116,631.29,627.34,0.29268633]
[1740934838124,0.3168116,631.29,627.33,1.14049352]
[1740934839134,0.3168116,631.29,627.34,0.29268562]
[1740934839432,0.3168116,631.29,627.89,1.14049352]
[1740934840834,0.3168116,631.29,628.14,1.14049352]
[1740934842536,0.3168116,631.29,628.23,1.14049352]
[1740934844832,3.559,631.28,628.23,1.14049352]
[1740934845634,3.559,631.28,627.54,1.4005691]
[1740934845635,3.559,631.28,628.42,1.14049352]
[1740934847135,3.559,631.28,628.34,1.14049352]
[1740934848238,0.3168869,631.14,628.34,1.14049352]
[1740934848937,1.732,631.13,628.36,1.14049352]
[1740934849132,0.31695721,631.0,628.36,1.14049352]
[1740934850533,3.1,630.99,628.36,1.14049352]
[1740934851033,3.1,630.99,627.94,1.14049352]
[1740934851637,0.3170376,630.84,627.94,1.14049352]
[1740934853235,0.3170376,630.84,627.49,1.13780189]
[1740934853236,0.3170376,630.84,627.97,1.14049352]
[1740934855335,0.3170376,630.84,627.95,1.14049352]
[1740934857336,0.3170376,630.84,627.47,1.14049352]
[1740934857536,0.3170376,630.84,627.48,0.31873525]
[1740934859238,0.3170376,630.84,627.51,1.14049352]
[1740934860342,0.3170376,630.84,627.57,1.14049352]
[1740934861639,3.224,630.83,627.57,1.14049352]
[1740934862045,3.224,630.83,627.48,0.31873525]
[1740934863138,0.31712305,630.67,627.48,0.31873525]
[1740934868247,1.733,630.66,627.48,0.31873525]
[1740934868843,0.31720353,630.51,627.48,0.31873525]
[1740934872651,0.537,630.5,627.48,0.31873525]
[1740934872852,0.31728404,630.35,627.48,0.31873525]
[1740934873248,0.31728404,630.35,626.93,1.14049352]
[1740934873451,0.31728404,630.35,626.95,0.3190047]
[1740934874054,3.562,630.34,626.95,0.3190047]
[1740934874555,0.31736964,630.18,626.95,0.3190047]
[1740934875850,4.37,630.17,626.95,0.3190047]
[1740934876150,0.31745527,630.01,626.95,0.3190047]
[1740934876756,2.94,630.0,626.95,0.3190047]
[1740934876956,0.31753592,629.85,626.95,0.3190047]
[1740934884953,0.31753592,629.85,626.12,1.14049352]
[1740934885152,0.31753592,629.85,626.23,0.31937147]
[1740934885354,0.31753592,629.85,626.24,2.19892808]
[1740934885558,0.31753592,629.85,626.25,2.19892808]
[1740934885754,0.31753592,629.85,626.26,5.04009378]
[1740934885955,0.31753592,629.85,626.31,1.14049352]
[1740934886155,0.31753592,629.85,626.32,0.84495356]
[1740934886361,0.31753592,629.85,626.33,0.84495356]
[1740934886561,0.31753592,629.85,626.32,2.84314295]
[1740934886762,0.31753592,629.85,626.33,2.84314295]
[1740934887364,0.31753592,629.85,626.31,1.14049352]
[1740934887564,0.31753592,629.85,626.23,0.31937147]
[1740934889764,0.31753592,629.85,626.07,1.14049352]
[1740934890265,0.31753592,629.85,626.04,1.14049352]
[1740934892566,0.31753592,629.85,625.73,1.14049352]
[1740934892864,0.31753592,629.85,625.73,1.46012019]
[1740934894161,0.31753592,629.85,625.73,0.31962667]
[1740934897167,7.445,629.84,625.73,0.31962667]
[1740934897363,9.179,629.84,625.73,0.31962667]
[1740934898862,4.269,629.83,625.73,0.31962667]
[1740934899166,4.269,629.83,625.22,1.14049352]
[1740934899362,4.269,629.83,625.23,0.31988228]
[1740934900663,4.269,629.83,625.24,0.29366287]
[1740934901364,4.269,629.83,625.23,0.31988228]
[1740934901564,4.269,629.83,625.24,0.29358529]
[1740934902670,4.269,629.83,625.23,0.31988228]
[1740934902970,4.269,629.83,625.24,0.29346966]
[1740934903869,4.806,629.83,625.24,0.29346966]
[1740934904263,4.806,629.83,625.23,0.31988228]
[1740934904472,4.806,629.83,625.24,0.29340903]
[1740934904767,4.806,629.83,625.25,0.29340903]
[1740934904976,4.806,629.83,625.26,0.29340903]
[1740934905175,4.806,629.83,625.24,0.29340903]
[1740934905378,4.806,629.83,625.25,0.29340903]
[1740934905571,4.806,629.83,625.24,0.29340903]
[1740934905874,4.806,629.83,625.25,0.29340903]
[1740934906072,4.806,629.83,625.29,1.14049352]
[1740934906275,4.806,629.83,625.3,0.29340903]
[1740934907371,4.806,629.83,625.29,1.14049352]
[1740934907572,4.806,629.83,625.3,0.29364953]
[1740934907778,4.806,629.83,625.29,1.14049352]
[1740934908172,4.806,629.83,625.23,0.31988228]
[1740934908377,4.806,629.83,625.24,0.29367062]
[1740934908775,4.806,629.83,625.23,0.31988228]
[1740934908978,4.806,629.83,625.24,0.29366997]
[1740934909175,4.806,629.83,625.23,0.31988228]
[1740934910681,4.806,629.83,625.24,0.2936079]
[1740934910875,4.806,629.83,625.23,0.31988228]
[1740934911479,4.806,629.83,625.24,0.29369563]
[1740934911676,4.806,629.83,625.23,0.31988228]
[1740934912282,4.806,629.83,625.29,1.14049352]
[1740934913978,4.806,629.83,625.23,0.31988228]
[1740934913979,4.806,629.83,625.35,1.14049352]
[1740934915989,4.806,629.83,625.33,1.14049352]
[1740934916389,8.368,629.83,625.33,1.14049352]
[1740934918188,8.368,629.83,625.59,1.14049352]
[1740934918689,0.31765191,629.62,625.59,1.14049352]
[1740934920292,0.31765191,629.62,625.23,0.31988228]
[1740934920293,0.31765191,629.62,625.34,1.14049352]
[1740934922187,4.44,629.61,625.34,1.14049352]
[1740934922794,4.44,629.61,625.11,1.14049352]
[1740934925393,4.44,629.61,624.69,1.13780189]
[1740934925597,4.44,629.61,624.51,1.14049352]
[1740934925793,4.44,629.61,624.52,0.29394964]
[1740934925997,4.44,629.61,624.54,0.32023569]
[1740934926296,4.44,629.61,624.55,0.29394964]
[1740934926498,4.44,629.61,624.54,0.32023569]
[1740934926799,4.44,629.61,624.76,1.14049352]
[1740934927497,1.732,629.6,624.76,1.14049352]
[1740934928293,1.732,629.6,624.66,1.14049352]
[1740934929399,2.971,629.59,624.66,1.14049352]
[1740934929792,2.971,629.59,624.54,0.32023569]
[1740934930200,0.537,629.58,624.54,0.32023569]
[1740934934812,4.099,629.58,624.54,0.32023569]
[1740934938212,4.099,629.58,623.6,1.66934497]
[1740934938413,4.099,629.58,623.62,0.32070812]
[1740934938711,4.099,629.58,623.63,0.29429114]
[1740934939613,4.099,629.58,623.62,0.32070812]
[1740934942119,4.099,629.58,623.28,1.14049352]
[1740934942511,7.391,629.58,623.28,1.14049352]
[1740934944715,7.391,629.58,621.97,1.14049352]
[1740934944922,7.391,629.58,621.98,0.29497976]
[1740934945321,7.391,629.58,621.99,0.2949314]
[1740934945622,7.391,629.58,622.0,0.2949314]
[1740934945921,7.391,629.58,622.01,0.2949314]
[1740934946119,7.391,629.58,622.02,0.2949314]
[1740934946423,7.391,629.58,622.03,0.2949314]
[1740934946615,7.391,629.58,622.04,0.2949314]
[1740934946820,7.391,629.58,622.22,0.32142971]
[1740934947214,7.391,629.58,622.23,0.29474735]
[1740934947418,7.391,629.58,622.24,0.29474735]
[1740934947614,7.391,629.58,622.25,0.29474735]
[1740934947919,7.391,629.58,622.26,0.29474735]
[1740934948120,7.391,629.58,622.27,0.29474735]
[1740934948319,7.391,629.58,622.28,0.29474735]
[1740934948522,7.391,629.58,622.29,0.29474735]
[1740934948721,7.391,629.58,622.3,0.29474735]
[1740934948924,7.391,629.58,622.23,0.29474735]
[1740934949123,7.391,629.58,622.22,0.32142971]
[1740934949124,7.391,629.58,622.24,0.29474735]
[1740934949320,7.391,629.58,622.25,0.29474735]
[1740934949519,7.391,629.58,622.23,0.29474735]
[1740934949718,7.391,629.58,622.24,0.29474735]
[1740934949919,7.391,629.58,622.23,0.29474735]
[1740934950122,7.391,629.58,622.22,0.32142971]
[1740934950623,7.391,629.58,622.23,0.29492409]
[1740934951127,7.391,629.58,622.24,0.29492409]
[1740934951322,7.391,629.58,622.22,0.32142971]
[1740934951823,7.391,629.58,622.23,0.29502632]
[1740934952227,7.391,629.58,622.22,0.32142971]
[1740934952625,7.391,629.58,622.23,0.29503201]
[1740934952826,9.121,629.58,622.23,0.29503201]
[1740934953930,9.121,629.58,622.24,0.29503201]
[1740934954123,9.121,629.58,622.25,0.29503201]
[1740934954328,9.121,629.58,622.26,0.29503201]
[1740934954628,9.121,629.58,622.27,0.29503201]
[1740934954828,9.121,629.58,622.28,0.29503201]
[1740934955031,9.121,629.58,622.29,0.29503201]
[1740934955227,9.121,629.58,622.22,0.32142971]
[1740934955730,0.31785385,629.22,622.22,0.32142971]
[1740934957231,0.31785385,629.22,622.23,0.29504249]
[1740934958035,0.31785385,629.22,622.22,0.32142971]
[1740934959137,3.562,629.21,622.22,0.32142971]
[1740934959333,4.099,629.21,622.22,0.32142971]
[1740934959530,4.292,629.2,622.22,0.32142971]
[1740934960534,4.292,629.2,622.23,0.29510362]
[1740934962041,4.292,629.2,622.22,0.32142971]
[1740934965546,4.7540624,628.7,622.22,0.32142971]
[1740934967343,4.7540624,628.7,621.4,1.67463347]
[1740934967542,4.7540624,628.7,621.41,0.29531256]
[1740934967746,4.7540624,628.7,621.43,0.32183834]
[1740934967949,6.94852346,628.56,621.44,0.29531256]
[1740934970149,6.94852346,628.56,621.43,0.32183834]
[1740934971148,6.94852346,628.56,621.44,0.29533414]
[1740934971548,6.94852346,628.56,621.43,0.32183834]
[1740934971751,0.31836487,628.21,621.44,0.29533847]
[1740934972446,0.31836487,628.21,621.43,0.32183834]
[1740934972844,0.31836487,628.21,621.44,0.29536576]
[1740934973448,0.31836487,628.21,621.45,0.29536328]
[1740934973649,0.31836487,628.21,621.44,0.29536328]
[1740934973845,0.31836487,628.21,621.43,0.32183834]
[1740934974851,2.826,628.2,621.43,0.32183834]
[1740934975046,0.31853727,627.87,621.44,0.29541569]
[1740934975248,0.31853727,627.87,621.45,0.29542129]
[1740934975446,0.31853727,627.87,621.43,0.32183834]
[1740934975650,0.31853727,627.87,621.44,0.29546842]
[1740934975850,0.31853727,627.87,621.43,0.32183834]
[1740934976447,3.461,627.86,621.43,0.32183834]
[1740934976648,3.461,627.86,621.44,0.29547153]
[1740934976848,3.461,627.86,621.45,0.29543796]
[1740934977153,3.461,627.86,621.43,0.32183834]
[1740934979150,0.31870478,627.54,621.43,0.32183834]
[1740934979551,0.31870478,627.54,621.44,0.29542343]
[1740934979751,0.31870478,627.54,621.43,0.32183834]
[1740934980152,0.31870478,627.54,621.44,0.29543912]
[1740934981153,0.31870478,627.54,621.43,0.32183834]
[1740934981952,1.733,627.53,621.44,0.29537561]
[1740934982857,1.733,627.53,621.43,0.32183834]
[1740934983156,1.733,627.53,621.44,0.29537705]
[1740934983356,1.733,627.53,621.43,0.32183834]
[1740934983758,1.733,627.53,621.44,0.2954063]
[1740934983950,1.733,627.53,621.43,0.32183834]
[1740934984351,1.733,627.53,621.44,0.29545441]
[1740934984762,1.733,627.53,621.59,1.14049352]
[1740934987059,1.733,627.53,621.46,0.3218228]
[1740934988554,1.733,627.53,621.58,1.14049352]
[1740934990060,1.733,627.53,621.46,0.3218228]
[1740934990758,0.538,627.52,621.47,0.29544755]
[1740934990959,0.538,627.52,621.46,0.3218228]
[1740934991563,0.538,627.52,621.86,1.14049352]
[1740934992062,4.17,627.51,621.86,1.14049352]
[1740934992960,3.541,627.5,621.86,1.14049352]
[1740934993465,3.541,627.5,621.46,0.3218228]
[1740934993466,3.541,627.5,621.73,1.14049352]
[1740934994761,3.541,627.5,621.89,1.14049352]
[1740934996561,3.541,627.5,621.9,0.29527184]
[1740934996865,3.541,627.5,621.89,1.14049352]
[1740934997267,3.541,627.5,622.45,1.14049352]
[1740934999266,1.732,627.49,622.45,1.14049352]
[1740934999968,1.732,627.49,622.31,1.14049352]
[1740935001669,1.732,627.49,622.39,1.14049352]
[1740935002571,2.983,627.48,622.39,1.14049352]
[1740935004273,2.983,627.48,622.48,1.14049352]
[1740935004871,0.537,627.47,622.48,1.14049352]
[1740935006673,0.537,627.47,622.2,1.14049352]
[1740935008574,0.537,627.47,621.64,2.23433272]
[1740935008575,0.537,627.47,622.13,1.14049352]
[1740935011277,0.537,627.47,621.27,1.14049352]
[1740935011680,0.537,627.47,621.28,0.29558418]
[1740935011875,0.537,627.47,621.27,1.14049352]
[1740935012271,0.537,627.47,621.28,0.29554256]
[1740935013076,0.537,627.47,621.27,1.14049352]
[1740935013471,0.537,627.47,621.56,1.14049352]
[1740935014579,0.537,627.47,621.08,1.14049352]
[1740935015878,4.7540624,625.55,620.93,1.14049352]
[1740935016080,4.7540624,625.55,620.94,0.29569208]
[1740935016877,4.7540624,625.55,620.93,1.14049352]
[1740935017080,4.7540624,625.55,620.94,0.29565146]
[1740935017979,4.7540624,625.55,620.86,0.29565146]
[1740935018179,4.7540624,625.55,620.85,1.14049352]
[1740935018478,4.7540624,625.55,620.86,0.29570665]
[1740935019180,0.31983624,625.32,620.88,0.32212343]
[1740935019674,0.31983624,625.32,620.89,0.29569103]
[1740935019979,0.31983624,625.32,620.88,0.32212343]
[1740935021181,0.31983624,625.32,620.89,0.29574456]
[1740935021379,2.05483624,625.32,620.88,0.32212343]
[1740935023282,5.42683624,625.32,620.88,0.32212343]
[1740935023679,5.42683624,625.32,620.59,1.14049352]
[1740935023881,5.42683624,625.32,620.59,1.46276748]
[1740935024183,8.22783624,625.32,620.59,1.46276748]
[1740935024380,8.22783624,625.32,620.59,0.32227396]
[1740935026379,8.57883624,625.32,620.59,0.32227396]
[1740935026783,8.57883624,625.32,620.6,0.29589009]
[1740935026987,8.57883624,625.32,620.59,0.32227396]
[1740935027486,8.57883624,625.32,620.61,2.758]
[1740935028186,8.57883624,625.32,620.62,3.965]
[1740935028684,10.95483624,625.32,620.63,0.642]
[1740935042592,10.95483624,625.32,620.64,4.028]
[1740935045590,10.95483624,625.32,620.65,0.2957901]
[1740935046192,10.95483624,625.32,620.66,0.2957901]
[1740935046388,10.95483624,625.32,620.67,0.2957901]
[1740935046588,10.95483624,625.32,620.64,4.028]
[1740935046589,10.95483624,625.32,620.9,1.14049352]
[1740935047994,10.95483624,625.32,620.79,1.14049352]
[1740935048294,10.95483624,625.32,620.8,0.29582479]
[1740935048493,10.95483624,625.32,620.79,1.14049352]
[1740935048794,10.95483624,625.32,620.8,0.29575838]
[1740935048986,10.95483624,625.32,620.79,1.14049352]
[1740935048987,10.95483624,625.32,620.81,0.29575838]
[1740935049187,10.95483624,625.32,620.82,0.29575838]
[1740935049388,10.95483624,625.32,620.83,0.29575838]
[1740935049588,10.95483624,625.32,620.84,0.29575838]
[1740935049789,10.95483624,625.32,620.8,0.29575838]
[1740935049988,10.95483624,625.32,620.81,0.29575838]
[1740935050193,10.95483624,625.32,621.32,1.14049352]
[1740935053698,10.95483624,625.32,621.42,1.14049352]
[1740935055597,10.95483624,625.32,621.42,5.41349352]
[1740935055798,10.95483624,625.32,621.42,4.273]
[1740935057793,10.95483624,625.32,621.42,4.911]
[1740935058894,10.95483624,625.32,621.66,1.14049352]
[1740935060203,10.95483624,625.32,621.67,0.29532289]
[1740935060701,10.95483624,625.32,621.66,1.14049352]
[1740935060999,10.95483624,625.32,621.67,0.29531749]
[1740935061201,10.95483624,625.32,622.04,1.14049352]
[1740935062700,10.95483624,625.32,621.79,1.13780189]
[1740935062900,10.95483624,625.32,621.8,0.29522183]
[1740935063302,10.95483624,625.32,621.81,0.29522183]
[1740935063602,10.95483624,625.32,621.78,1.14049352]
[1740935063603,10.95483624,625.32,621.82,0.29522183]
[1740935063803,10.95483624,625.32,621.79,0.29522183]
[1740935064002,10.95483624,625.32,621.8,0.29522183]
[1740935064403,10.95483624,625.32,621.81,0.29522183]
[1740935064605,10.95483624,625.32,621.79,0.29522183]
[1740935065408,10.95483624,625.32,621.78,1.14049352]
[1740935065604,10.95483624,625.32,621.79,1.14049352]
[1740935066202,10.95483624,625.32,621.8,0.2953667]
[1740935067208,10.95483624,625.32,621.8,4.1603667]
[1740935067407,10.95483624,625.32,621.8,3.865]
[1740935068811,10.95483624,625.32,621.8,7.591]
[1740935072326,10.635,625.32,621.8,7.591]
[1740935081112,10.635,625.32,621.92,1.14049352]
[1740935084221,10.635,625.32,621.97,1.14049352]
[1740935085922,10.635,625.32,621.8,7.591]
[1740935087620,10.635,625.32,621.83,1.14049352]
[1740935089418,10.635,625.32,621.96,1.14049352]
[1740935090019,10.635,625.32,621.97,0.635]
[1740935092428,10.635,625.32,622.21,1.14049352]
[1740935094527,10.635,625.32,622.3,1.14049352]
[1740935095226,10.635,625.32,622.3,5.15749352]
[1740935096427,10.635,625.32,622.3,4.017]
[1740935097721,0.31991298,625.17,622.3,4.017]
[1740935101330,7.652,625.16,622.3,4.017]
[1740935104332,7.652,625.16,622.3,4.33838839]
[1740935105728,7.652,625.16,622.3,7.06238839]
[1740935105926,7.652,625.16,622.35,1.14049352]
[1740935106828,7.652,625.16,622.36,0.29501126]
[1740935107638,7.652,625.16,622.35,1.14049352]
[1740935107839,7.652,625.16,622.36,0.29490425]
[1740935108443,7.652,625.16,622.37,1.4073732]
[1740935108636,7.652,625.16,622.38,0.2949138]
[1740935108839,7.652,625.16,622.73,1.14049352]
[1740935110639,7.652,625.16,622.44,1.13780189]
[1740935110640,7.652,625.16,622.34,1.14049352]
[1740935110841,0.31998976,625.02,622.34,1.14049352]
[1740935111341,0.31998976,625.02,622.35,0.633]
[1740935111835,0.31998976,625.02,622.36,0.32135741]
[1740935115343,0.31998976,625.02,622.35,0.633]
[1740935120246,3.494,625.01,622.35,0.633]
[1740935120447,0.32006145,624.88,622.35,0.633]
[1740935122545,0.349,624.87,622.35,0.633]
[1740935123849,0.32012805,624.75,622.35,0.633]
[1740935125550,2.366,624.74,622.35,0.633]
[1740935125946,2.366,624.74,622.36,0.29501316]
[1740935126148,2.366,624.74,622.37,0.86345439]
[1740935126345,2.366,624.74,622.38,2.24212589]
[1740935126549,2.366,624.74,622.39,2.53713905]
[1740935126744,2.366,624.74,622.4,2.53713905]
[1740935126950,0.32018955,624.63,622.41,1.15846755]
[1740935127145,0.32018955,624.63,622.42,1.15846755]
[1740935127349,0.32018955,624.63,622.43,0.29501316]
[1740935127549,0.32018955,624.63,622.42,4.016]
[1740935127750,0.32018955,624.63,622.44,2.89528697]
[1740935127952,0.32018955,624.63,622.45,0.29501316]
[1740935128547,0.32018955,624.63,622.46,0.29501316]
[1740935128749,0.32018955,624.63,622.61,1.14049352]
[1740935129451,0.32018955,624.63,622.62,0.29486179]
[1740935129752,0.32018955,624.63,622.63,0.29486179]
[1740935129949,0.32018955,624.63,622.64,0.29486179]
[1740935130146,0.32018955,624.63,622.65,0.29486179]
[1740935130349,0.32018955,624.63,622.66,0.29486179]
[1740935130855,0.32018955,624.63,623.0,1.14049352]
[1740935131953,0.32018955,624.63,623.01,0.29474785]
[1740935132151,0.32018955,624.63,623.0,1.14049352]
[1740935132348,0.32018955,624.63,623.01,0.29475574]
[1740935132649,1.238,624.62,623.0,1.14049352]
[1740935132853,0.32020493,624.6,623.0,1.14049352]